[Event "Live Chess"]
[Site "Chess.com"]
[Date "2024.06.01"]
[Round "-"]
[White "updatedopenings2024"]
[Black "MagnersCarlsberg2870"]
[Result "0-1"]
[WhiteElo "1944"]
[BlackElo "1893"]
[TimeControl "300"]
[EndTime "11:37:00 PDT"]
[Termination "MagnersCarlsberg2870 won by resignation"]

1. e4 {[%clk 0:04:58.9]} 1... d5 {[%clk 0:04:54.8]} 2. exd5 {[%clk 0:04:57.8]}
2... Nf6 {[%clk 0:04:53.7]} 3. d4 {[%clk 0:04:56.9]} 3... Bg4 {[%clk 0:04:49.7]}
4. f3 {[%clk 0:04:56.2]} 4... Bf5 {[%clk 0:04:48.6]} 5. g4 {[%clk 0:04:56.1]}
5... Bg6 {[%clk 0:04:46.6]} 6. c4 {[%clk 0:04:56]} 6... e6 {[%clk 0:04:42.3]} 7.
Nc3 {[%clk 0:04:55.9]} 7... exd5 {[%clk 0:04:40.8]} 8. f4 {[%clk 0:04:52.2]}
8... Be4 {[%clk 0:04:30.6]} 9. Nxe4 {[%clk 0:04:48.3]} 9... Nxe4 {[%clk
0:04:29.5]} 10. Nf3 {[%clk 0:04:47.1]} 10... Bb4+ {[%clk 0:04:25.6]} 11. Ke2
{[%clk 0:04:43.9]} 11... O-O {[%clk 0:04:22.3]} 12. a3 {[%clk 0:04:40.9]} 12...
Re8 {[%clk 0:04:20.2]} 13. Ne5 {[%clk 0:04:38.8]} 13... Bd6 {[%clk 0:04:10.9]}
14. Kf3 {[%clk 0:04:35.8]} 14... Qh4 {[%clk 0:04:08.3]} 15. Be3 {[%clk
0:04:32.2]} 15... f6 {[%clk 0:03:59.9]} 16. cxd5 {[%clk 0:04:27.6]} 16... fxe5
{[%clk 0:03:57.9]} 17. dxe5 {[%clk 0:04:27.2]} 17... Bxe5 {[%clk 0:03:53.6]} 18.
fxe5 {[%clk 0:04:26]} 18... Rxe5 {[%clk 0:03:51]} 19. Qd4 {[%clk 0:04:13.6]}
19... Nd7 {[%clk 0:03:43.3]} 20. Bc4 {[%clk 0:04:10.5]} 20... Rf8+ {[%clk
0:03:41.4]} 21. Kg2 {[%clk 0:04:09.4]} 21... Kh8 {[%clk 0:03:19.5]} 22. h3
{[%clk 0:04:05.6]} 22... Nd6 {[%clk 0:03:10.3]} 23. Raf1 {[%clk 0:03:58.4]}
23... Rfe8 {[%clk 0:02:52.8]} 24. Bf4 {[%clk 0:03:51.6]} 24... Re4 {[%clk
0:02:47.5]} 25. Qf2 {[%clk 0:03:25.3]} 25... Qxf2+ {[%clk 0:02:40.8]} 26. Rxf2
{[%clk 0:03:25.2]} 26... Nxc4 {[%clk 0:02:39.7]} 27. Rd1 {[%clk 0:03:22.9]}
27... Rxf4 {[%clk 0:02:36.2]} 0-1

[Event "Live Chess"]
[Site "Chess.com"]
[Date "2024.06.01"]
[Round "-"]
[White "FortunatusMax"]
[Black "educatedlad"]
[Result "0-1"]
[WhiteElo "914"]
[BlackElo "1750"]
[TimeControl "300"]
[EndTime "11:37:00 PDT"]
[Termination "educatedlad won by checkmate"]

1. e4 {[%clk 0:04:58.7]} 1... d5 {[%clk 0:04:56.4]} 2. exd5 {[%clk 0:04:56.1]}
2... Qxd5 {[%clk 0:04:55.2]} 3. Nc3 {[%clk 0:04:55.5]} 3... Qd6 {[%clk
0:04:52.8]} 4. Be2 {[%clk 0:04:52.5]} 4... g6 {[%clk 0:04:52.3]} 5. Nf3 {[%clk
0:04:51.7]} 5... Bg7 {[%clk 0:04:51.9]} 6. O-O {[%clk 0:04:50.6]} 6... Nf6
{[%clk 0:04:51.2]} 7. g3 {[%clk 0:04:49.9]} 7... O-O {[%clk 0:04:50.6]} 8. Nb5
{[%clk 0:04:45.4]} 8... Qc6 {[%clk 0:04:47.4]} 9. Nfd4 {[%clk 0:04:42.3]} 9...
Qe4 {[%clk 0:04:34.1]} 10. f3 {[%clk 0:04:36.2]} 10... Qe5 {[%clk 0:04:28.7]}
11. d3 {[%clk 0:04:30.2]} 11... Bh3 {[%clk 0:04:27.3]} 12. Bf4 {[%clk
0:04:27.5]} 12... Qc5 {[%clk 0:04:19.1]} 13. Rf2 {[%clk 0:04:21.2]} 13... Nc6
{[%clk 0:04:17.9]} 14. Nxc7 {[%clk 0:04:15.6]} 14... Nxd4 {[%clk 0:04:13]} 15.
Nxa8 {[%clk 0:04:13.6]} 15... Nxe2+ {[%clk 0:04:11.4]} 16. Qxe2 {[%clk
0:04:11.6]} 16... Rxa8 {[%clk 0:04:09.9]} 17. Be3 {[%clk 0:04:07.4]} 17... Qb5
{[%clk 0:04:06.4]} 18. b3 {[%clk 0:04:02.8]} 18... Nd5 {[%clk 0:04:05]} 19. Rc1
{[%clk 0:03:55.2]} 19... Nxe3 {[%clk 0:03:59.8]} 20. Qxe3 {[%clk 0:03:53.1]}
20... Rd8 {[%clk 0:03:58.3]} 21. c4 {[%clk 0:03:49.5]} 21... Qf5 {[%clk
0:03:53.4]} 22. Qxa7 {[%clk 0:03:43]} 22... Bd4 {[%clk 0:03:50.7]} 23. Qa3
{[%clk 0:03:23]} 23... Qxf3 {[%clk 0:03:45.1]} 24. Rc2 {[%clk 0:03:16.3]} 24...
Qg2# {[%clk 0:03:43.4]} 0-1

[Event "Live Chess"]
[Site "Chess.com"]
[Date "2024.06.01"]
[Round "-"]
[White "Mangoalo"]
[Black "viktor_forever1994"]
[Result "1-0"]
[WhiteElo "1023"]
[BlackElo "1376"]
[TimeControl "300"]
[EndTime "11:37:16 PDT"]
[Termination "Mangoalo won by checkmate"]

1. f4 {[%clk 0:04:58.6]} 1... d5 {[%clk 0:04:58.2]} 2. Nf3 {[%clk 0:04:58.5]}
2... Nc6 {[%clk 0:04:56.9]} 3. e3 {[%clk 0:04:57.3]} 3... Nf6 {[%clk 0:04:55.9]}
4. Bb5 {[%clk 0:04:56.9]} 4... Bd7 {[%clk 0:04:53.1]} 5. d4 {[%clk 0:04:56.5]}
5... a6 {[%clk 0:04:51.8]} 6. Bxc6 {[%clk 0:04:54.7]} 6... Bxc6 {[%clk
0:04:51.7]} 7. Nc3 {[%clk 0:04:54]} 7... Ne4 {[%clk 0:04:47]} 8. Bd2 {[%clk
0:04:53.9]} 8... Nxc3 {[%clk 0:04:42.6]} 9. Bxc3 {[%clk 0:04:52.9]} 9... e6
{[%clk 0:04:41.4]} 10. O-O {[%clk 0:04:51.5]} 10... h6 {[%clk 0:04:28.1]} 11.
Ne5 {[%clk 0:04:43.1]} 11... Bd6 {[%clk 0:04:18.5]} 12. Qh5 {[%clk 0:04:38.5]}
12... Qf6 {[%clk 0:04:11.1]} 13. Nxc6 {[%clk 0:04:26]} 13... bxc6 {[%clk
0:04:11]} 14. Bd2 {[%clk 0:04:24.6]} 14... c5 {[%clk 0:03:56.3]} 15. dxc5 {[%clk
0:04:23.1]} 15... Bxc5 {[%clk 0:03:55.3]} 16. c3 {[%clk 0:04:18.3]} 16... Rb8
{[%clk 0:03:49.2]} 17. b4 {[%clk 0:04:16.6]} 17... Ba7 {[%clk 0:03:44.1]} 18.
Rf3 {[%clk 0:04:12.3]} 18... O-O {[%clk 0:03:03.2]} 19. f5 {[%clk 0:04:10.5]}
19... d4 {[%clk 0:02:39]} 20. fxe6 {[%clk 0:04:02.9]} 20... Qxe6 {[%clk
0:02:30.4]} 21. exd4 {[%clk 0:03:58.6]} 21... Qg6 {[%clk 0:02:06.8]} 22. Qd5
{[%clk 0:03:46.5]} 22... Qc2 {[%clk 0:01:54.6]} 23. Bxh6 {[%clk 0:03:40.9]}
23... gxh6 {[%clk 0:01:06.7]} 24. Rg3+ {[%clk 0:03:31.7]} 24... Kh7 {[%clk
0:01:00]} 25. Rf1 {[%clk 0:03:24]} 25... Rb5 {[%clk 0:00:35.1]} 26. Rxf7+ {[%clk
0:03:19.8]} 26... Rxf7 {[%clk 0:00:25.1]} 27. Qxf7+ {[%clk 0:03:18.3]} 27... Kh8
{[%clk 0:00:23.3]} 28. Rg8# {[%clk 0:03:16.4]} 1-0

[Event "Live Chess"]
[Site "Chess.com"]
[Date "2024.06.01"]
[Round "-"]
[White "Dhaydon19"]
[Black "Queensandpawns"]
[Result "1-0"]
[WhiteElo "2685"]
[BlackElo "2434"]
[TimeControl "300"]
[EndTime "11:37:27 PDT"]
[Termination "Dhaydon19 won by resignation"]

1. d4 {[%clk 0:04:58.5]} 1... Nc6 {[%clk 0:04:55.6]} 2. c3 {[%clk 0:04:58.1]}
2... e5 {[%clk 0:04:55]} 3. dxe5 {[%clk 0:04:56.7]} 3... Nxe5 {[%clk 0:04:54.9]}
4. Nf3 {[%clk 0:04:56]} 4... Ng6 {[%clk 0:04:54.4]} 5. g3 {[%clk 0:04:55.1]}
5... Nf6 {[%clk 0:04:54.3]} 6. Bg2 {[%clk 0:04:54.5]} 6... d5 {[%clk 0:04:53.7]}
7. O-O {[%clk 0:04:54]} 7... h5 {[%clk 0:04:52.7]} 8. h4 {[%clk 0:04:51.8]} 8...
Ng4 {[%clk 0:04:51.5]} 9. Bg5 {[%clk 0:04:49.6]} 9... Be7 {[%clk 0:04:50.8]} 10.
Qc2 {[%clk 0:04:48]} 10... Be6 {[%clk 0:04:46.9]} 11. Nbd2 {[%clk 0:04:46.2]}
11... Qd7 {[%clk 0:04:45.7]} 12. Bxe7 {[%clk 0:04:45]} 12... Qxe7 {[%clk
0:04:45.1]} 13. Ng5 {[%clk 0:04:43.4]} 13... O-O-O {[%clk 0:04:42.4]} 14. Ndf3
{[%clk 0:04:40]} 14... Rhe8 {[%clk 0:04:39]} 15. Nd4 {[%clk 0:04:38.1]} 15...
N6e5 {[%clk 0:04:25.1]} 16. Ndxe6 {[%clk 0:04:35.5]} 16... fxe6 {[%clk
0:04:24.7]} 17. Rad1 {[%clk 0:04:30.6]} 17... Nc4 {[%clk 0:04:22.5]} 18. b3
{[%clk 0:04:25.4]} 18... Nb6 {[%clk 0:04:15.9]} 19. Qg6 {[%clk 0:04:22.8]} 19...
Nf6 {[%clk 0:04:08.6]} 20. e4 {[%clk 0:04:21.8]} 20... dxe4 {[%clk 0:04:06.2]}
21. Nxe4 {[%clk 0:04:20.5]} 21... Nbd5 {[%clk 0:04:00]} 22. c4 {[%clk
0:04:15.2]} 22... Nxe4 {[%clk 0:03:54.1]} 23. Qxe4 {[%clk 0:04:13.9]} 1-0

[Event "Live Chess"]
[Site "Chess.com"]
[Date "2024.06.01"]
[Round "-"]
[White "NeilDruggan73"]
[Black "Colm_Buckley"]
[Result "0-1"]
[WhiteElo "1711"]
[BlackElo "1816"]
[TimeControl "300"]
[EndTime "11:37:29 PDT"]
[Termination "Colm_Buckley won on time"]

1. d4 {[%clk 0:04:47.9]} 1... e6 {[%clk 0:04:58.6]} 2. Nf3 {[%clk 0:04:39.2]}
2... Nf6 {[%clk 0:04:56.4]} 3. Bg5 {[%clk 0:04:37.6]} 3... c5 {[%clk 0:04:54.9]}
4. e4 {[%clk 0:04:36.2]} 4... h6 {[%clk 0:04:51.1]} 5. Bxf6 {[%clk 0:04:33.6]}
5... Qxf6 {[%clk 0:04:47.3]} 6. e5 {[%clk 0:04:32.2]} 6... Qd8 {[%clk
0:04:46.3]} 7. c3 {[%clk 0:04:30.9]} 7... cxd4 {[%clk 0:04:44.9]} 8. cxd4 {[%clk
0:04:29.7]} 8... d6 {[%clk 0:04:43.6]} 9. Nc3 {[%clk 0:04:27.8]} 9... dxe5
{[%clk 0:04:42]} 10. dxe5 {[%clk 0:04:26.7]} 10... Qxd1+ {[%clk 0:04:39.8]} 11.
Rxd1 {[%clk 0:04:25.4]} 11... a6 {[%clk 0:04:38.4]} 12. a3 {[%clk 0:04:16.9]}
12... Bd7 {[%clk 0:04:34.5]} 13. Bc4 {[%clk 0:04:07.6]} 13... Be7 {[%clk
0:04:32.5]} 14. Rd2 {[%clk 0:04:01.5]} 14... b5 {[%clk 0:04:25.9]} 15. Bb3
{[%clk 0:03:56.6]} 15... Nc6 {[%clk 0:04:25.2]} 16. O-O {[%clk 0:03:53.7]} 16...
Na5 {[%clk 0:04:16.2]} 17. Ba2 {[%clk 0:03:47.6]} 17... O-O-O {[%clk 0:04:08.2]}
18. Rfd1 {[%clk 0:03:45.6]} 18... Bc6 {[%clk 0:04:06.6]} 19. Nd4 {[%clk
0:03:34.1]} 19... Kc7 {[%clk 0:03:47.8]} 20. b4 {[%clk 0:03:22.2]} 20... Nc4
{[%clk 0:03:35.8]} 21. Bxc4 {[%clk 0:03:14.3]} 21... bxc4 {[%clk 0:03:34.8]} 22.
Nxc6 {[%clk 0:02:45.5]} 22... Rxd2 {[%clk 0:03:27.7]} 23. Rxd2 {[%clk
0:02:41.3]} 23... Kxc6 {[%clk 0:03:25.3]} 24. Rd4 {[%clk 0:02:31.1]} 24... Rd8
{[%clk 0:03:15.6]} 25. Rxc4+ {[%clk 0:02:28.9]} 25... Kb6 {[%clk 0:03:13.6]} 26.
g3 {[%clk 0:02:15.5]} 26... f6 {[%clk 0:02:58.2]} 27. f4 {[%clk 0:01:21.7]}
27... g5 {[%clk 0:02:46.9]} 28. Kg2 {[%clk 0:01:17.4]} 28... Rd2+ {[%clk
0:02:41.6]} 29. Kh3 {[%clk 0:01:13.1]} 29... f5 {[%clk 0:02:31.2]} 30. fxg5
{[%clk 0:01:02]} 30... hxg5 {[%clk 0:02:26.4]} 31. g4 {[%clk 0:00:57.4]} 31...
Rd3+ {[%clk 0:02:20.3]} 32. Kg2 {[%clk 0:00:55.5]} 32... Re3 {[%clk 0:02:02.4]}
33. gxf5 {[%clk 0:00:48.1]} 33... Rxe5 {[%clk 0:01:59.3]} 34. fxe6 {[%clk
0:00:39.5]} 34... Rxe6 {[%clk 0:01:57.6]} 35. a4 {[%clk 0:00:30.3]} 35... Rd6
{[%clk 0:01:45.2]} 36. Ne4 {[%clk 0:00:24.2]} 36... Rd5 {[%clk 0:01:38.4]} 37.
Kf3 {[%clk 0:00:20.9]} 37... a5 {[%clk 0:01:26.2]} 38. b5 {[%clk 0:00:18.6]}
38... Kb7 {[%clk 0:01:11.9]} 39. Kg4 {[%clk 0:00:18.1]} 39... Rd1 {[%clk
0:01:05.8]} 40. h3 {[%clk 0:00:11.9]} 40... Rg1+ {[%clk 0:01:04.1]} 41. Kf5
{[%clk 0:00:10.2]} 41... Rh1 {[%clk 0:00:59.5]} 42. Ke6 {[%clk 0:00:08.6]} 42...
Bd8 {[%clk 0:00:52.6]} 43. Nd6+ {[%clk 0:00:07.4]} 43... Ka7 {[%clk 0:00:46.3]}
44. Rc8 {[%clk 0:00:04.4]} 44... Bb6 {[%clk 0:00:40.3]} 45. Rc6 {[%clk
0:00:03.2]} 45... Be3 {[%clk 0:00:34.4]} 46. Nc8+ {[%clk 0:00:02.7]} 46... Kb7
{[%clk 0:00:33]} 47. Nd6+ {[%clk 0:00:01]} 47... Kb8 {[%clk 0:00:30.5]} 0-1

[Event "Live Chess"]
[Site "Chess.com"]
[Date "2024.06.01"]
[Round "-"]
[White "PatientChessPapa"]
[Black "nigelst"]
[Result "0-1"]
[WhiteElo "783"]
[BlackElo "1672"]
[TimeControl "300"]
[EndTime "11:37:31 PDT"]
[Termination "nigelst won on time"]

1. e4 {[%clk 0:04:56.6]} 1... c6 {[%clk 0:04:59.1]} 2. d4 {[%clk 0:04:55.1]}
2... d5 {[%clk 0:04:58.6]} 3. exd5 {[%clk 0:04:53.8]} 3... cxd5 {[%clk
0:04:57.6]} 4. c4 {[%clk 0:04:52.6]} 4... Nf6 {[%clk 0:04:57.2]} 5. Nc3 {[%clk
0:04:50.9]} 5... Nc6 {[%clk 0:04:56.8]} 6. Nf3 {[%clk 0:04:49.4]} 6... Bg4
{[%clk 0:04:55.3]} 7. cxd5 {[%clk 0:04:47.9]} 7... Nxd5 {[%clk 0:04:53.5]} 8.
Qb3 {[%clk 0:04:45.8]} 8... Bxf3 {[%clk 0:04:50.2]} 9. gxf3 {[%clk 0:04:43.8]}
9... e6 {[%clk 0:04:49.3]} 10. Qxb7 {[%clk 0:04:41.7]} 10... Nxd4 {[%clk
0:04:48.3]} 11. Bb5+ {[%clk 0:04:33.4]} 11... Nxb5 {[%clk 0:04:46.9]} 12. Qc6+
{[%clk 0:04:31.6]} 12... Ke7 {[%clk 0:04:34.8]} 13. Qc5+ {[%clk 0:04:22.9]}
13... Nd6 {[%clk 0:04:32.8]} 14. Nxd5+ {[%clk 0:04:21.7]} 14... exd5 {[%clk
0:04:31.3]} 15. Qxd5 {[%clk 0:04:20.6]} 15... Rb8 {[%clk 0:04:16.3]} 16. O-O
{[%clk 0:04:18.6]} 16... Rb5 {[%clk 0:04:10.9]} 17. Re1+ {[%clk 0:04:10.6]}
17... Kd7 {[%clk 0:04:07.4]} 18. Qd3 {[%clk 0:03:30.5]} 18... Be7 {[%clk
0:03:57]} 19. Bf4 {[%clk 0:03:15.9]} 19... Re8 {[%clk 0:03:40.4]} 20. Rad1
{[%clk 0:03:02.5]} 20... Rb6 {[%clk 0:03:38.5]} 21. Qf5+ {[%clk 0:02:34.3]}
21... Kc6 {[%clk 0:03:23.7]} 22. Qd5+ {[%clk 0:01:33.9]} 22... Kc7 {[%clk
0:03:18.1]} 23. Rc1+ {[%clk 0:01:23.5]} 23... Kb8 {[%clk 0:03:13.2]} 24. Be3
{[%clk 0:00:18.6]} 24... Rb5 {[%clk 0:03:04.6]} 25. Qd4 {[%clk 0:00:03.5]} 25...
Qb6 {[%clk 0:02:58]} 0-1

[Event "Live Chess"]
[Site "Chess.com"]
[Date "2024.06.01"]
[Round "-"]
[White "LanceMaster23"]
[Black "TigerTank70"]
[Result "0-1"]
[WhiteElo "1784"]
[BlackElo "2219"]
[TimeControl "300"]
[EndTime "11:37:33 PDT"]
[Termination "TigerTank70 won by resignation"]

1. Nf3 {[%clk 0:04:58.6]} 1... d6 {[%clk 0:04:58.2]} 2. g3 {[%clk 0:04:57.2]}
2... e5 {[%clk 0:04:56.6]} 3. Bg2 {[%clk 0:04:56]} 3... Nc6 {[%clk 0:04:55.9]}
4. O-O {[%clk 0:04:55.2]} 4... Bg4 {[%clk 0:04:55]} 5. c4 {[%clk 0:04:52.3]}
5... Qd7 {[%clk 0:04:52.3]} 6. Nc3 {[%clk 0:04:50]} 6... h5 {[%clk 0:04:49.9]}
7. h4 {[%clk 0:04:37.1]} 7... Bh3 {[%clk 0:04:45.1]} 8. d4 {[%clk 0:04:32.1]}
8... Bxg2 {[%clk 0:04:41]} 9. Kxg2 {[%clk 0:04:31.2]} 9... exd4 {[%clk
0:04:35.1]} 10. Nxd4 {[%clk 0:04:31.1]} 10... Be7 {[%clk 0:04:32.4]} 11. e4
{[%clk 0:04:17.2]} 11... Bf6 {[%clk 0:04:26.9]} 12. Be3 {[%clk 0:04:06.9]} 12...
Nge7 {[%clk 0:04:21.2]} 13. Nd5 {[%clk 0:03:57.4]} 13... Nxd5 {[%clk 0:04:17.9]}
14. exd5 {[%clk 0:03:55.8]} 14... Ne5 {[%clk 0:04:10]} 15. Qc2 {[%clk 0:03:45]}
15... Ng4 {[%clk 0:04:02.3]} 16. Rae1 {[%clk 0:03:34.4]} 16... O-O {[%clk
0:04:01.1]} 17. Qf5 {[%clk 0:03:12.5]} 17... Qxf5 {[%clk 0:03:55.1]} 18. Nxf5
{[%clk 0:03:12]} 18... Bxb2 {[%clk 0:03:51.1]} 19. Rb1 {[%clk 0:03:11.3]} 19...
Bf6 {[%clk 0:03:41.1]} 20. Rxb7 {[%clk 0:03:10.5]} 20... g6 {[%clk 0:03:37.9]}
21. Nh6+ {[%clk 0:02:30.7]} 21... Nxh6 {[%clk 0:03:22.4]} 22. Bxh6 {[%clk
0:02:30.6]} 22... Rfc8 {[%clk 0:03:21.5]} 23. Re1 {[%clk 0:02:12.8]} 23... c6
{[%clk 0:03:19.2]} 24. Bf4 {[%clk 0:02:06.3]} 24... cxd5 {[%clk 0:03:12.4]} 25.
cxd5 {[%clk 0:02:04.5]} 25... Rc2 {[%clk 0:03:10.6]} 26. a4 {[%clk 0:01:30.2]}
26... Ra2 {[%clk 0:02:55.8]} 27. Bxd6 {[%clk 0:01:22.2]} 27... Bd4 {[%clk
0:02:50]} 28. Ree7 {[%clk 0:00:55.1]} 28... Rxf2+ {[%clk 0:02:47.4]} 29. Kh3
{[%clk 0:00:48.7]} 29... Rd8 {[%clk 0:02:45.9]} 30. Be5 {[%clk 0:00:41.8]} 30...
Bc5 {[%clk 0:02:16.7]} 31. Red7 {[%clk 0:00:35.7]} 31... Re8 {[%clk 0:02:11.4]}
32. Bc3 {[%clk 0:00:23.2]} 32... Ree2 {[%clk 0:02:00.7]} 33. Rd8+ {[%clk
0:00:13.8]} 33... Bf8 {[%clk 0:01:59.9]} 34. Rxf8+ {[%clk 0:00:11.3]} 34... Kxf8
{[%clk 0:01:58.9]} 35. Rb8+ {[%clk 0:00:10.7]} 35... Ke7 {[%clk 0:01:57.4]} 36.
Bb4+ {[%clk 0:00:09]} 36... Kd7 {[%clk 0:01:56.7]} 37. Rb7+ {[%clk 0:00:07.7]}
37... Kc8 {[%clk 0:01:55.9]} 0-1

[Event "Live Chess"]
[Site "Chess.com"]
[Date "2024.06.01"]
[Round "-"]
[White "FlyingChessKestrel13"]
[Black "PureDashingOctopus"]
[Result "0-1"]
[WhiteElo "2078"]
[BlackElo "2257"]
[TimeControl "300"]
[EndTime "11:37:35 PDT"]
[Termination "PureDashingOctopus won by resignation"]

1. e4 {[%clk 0:04:57.8]} 1... c5 {[%clk 0:04:54.4]} 2. Nf3 {[%clk 0:04:55.7]}
2... d6 {[%clk 0:04:53.5]} 3. d4 {[%clk 0:04:53.8]} 3... cxd4 {[%clk 0:04:53.4]}
4. Nxd4 {[%clk 0:04:52.3]} 4... Nf6 {[%clk 0:04:51.6]} 5. Nc3 {[%clk 0:04:51]}
5... a6 {[%clk 0:04:49.8]} 6. g3 {[%clk 0:04:45.2]} 6... e5 {[%clk 0:04:48.2]}
7. Nde2 {[%clk 0:04:42.9]} 7... Be7 {[%clk 0:04:47]} 8. Bg2 {[%clk 0:04:41.4]}
8... O-O {[%clk 0:04:44.2]} 9. O-O {[%clk 0:04:41]} 9... Nc6 {[%clk 0:04:41.8]}
10. Nd5 {[%clk 0:04:40.1]} 10... Nxd5 {[%clk 0:04:39.7]} 11. exd5 {[%clk
0:04:39.3]} 11... Nb8 {[%clk 0:04:38]} 12. c4 {[%clk 0:04:37.5]} 12... Nd7
{[%clk 0:04:34.6]} 13. Be3 {[%clk 0:04:36.4]} 13... f5 {[%clk 0:04:32.7]} 14. f4
{[%clk 0:04:22.3]} 14... e4 {[%clk 0:04:30.1]} 15. b4 {[%clk 0:04:20.7]} 15...
Nf6 {[%clk 0:04:28.4]} 16. h3 {[%clk 0:04:15.6]} 16... b5 {[%clk 0:04:23.8]} 17.
cxb5 {[%clk 0:04:13.4]} 17... axb5 {[%clk 0:04:22.1]} 18. Nd4 {[%clk 0:04:13]}
18... Nxd5 {[%clk 0:04:19.6]} 19. Qe2 {[%clk 0:04:04.4]} 19... Nxe3 {[%clk
0:04:07.1]} 20. Qxe3 {[%clk 0:04:03.1]} 20... Bf6 {[%clk 0:04:06.4]} 21. Nc6
{[%clk 0:03:57.9]} 21... Qd7 {[%clk 0:04:01.9]} 22. Rac1 {[%clk 0:03:56.1]}
22... Bb7 {[%clk 0:04:00.4]} 23. Qb6 {[%clk 0:03:52.1]} 23... Bxc6 {[%clk
0:03:58.8]} 24. Qxc6 {[%clk 0:03:51.4]} 24... Qxc6 {[%clk 0:03:55.7]} 25. Rxc6
{[%clk 0:03:51]} 25... d5 {[%clk 0:03:53.7]} 26. Rd1 {[%clk 0:03:45.8]} 26... d4
{[%clk 0:03:51.3]} 27. g4 {[%clk 0:03:43]} 27... g6 {[%clk 0:03:44]} 28. gxf5
{[%clk 0:03:39.8]} 28... gxf5 {[%clk 0:03:43.9]} 29. Kh2 {[%clk 0:03:36.6]}
29... Rxa2 {[%clk 0:03:42.3]} 30. Kh1 {[%clk 0:03:34.3]} 30... d3 {[%clk
0:03:37.8]} 31. Rg1 {[%clk 0:03:32.4]} 31... Ra1 {[%clk 0:03:36.5]} 32. Bf1+
{[%clk 0:03:28]} 32... Kh8 {[%clk 0:03:34.2]} 33. Rd6 {[%clk 0:03:19.1]} 33...
Bh4 {[%clk 0:03:19]} 34. Bg2 {[%clk 0:03:13.2]} 34... Rxg1+ {[%clk 0:03:15.7]}
35. Kxg1 {[%clk 0:03:13.1]} 35... e3 {[%clk 0:03:15.1]} 0-1

[Event "Live Chess"]
[Site "Chess.com"]
[Date "2024.06.01"]
[Round "-"]
[White "McFim"]
[Black "dhairyapandyauk"]
[Result "1-0"]
[WhiteElo "1591"]
[BlackElo "1646"]
[TimeControl "300"]
[EndTime "11:37:36 PDT"]
[Termination "McFim won by resignation"]

1. e4 {[%clk 0:04:55.6]} 1... e5 {[%clk 0:04:59.2]} 2. Nf3 {[%clk 0:04:54.1]}
2... Nc6 {[%clk 0:04:58.6]} 3. Bb5 {[%clk 0:04:52.2]} 3... a6 {[%clk 0:04:56.8]}
4. Ba4 {[%clk 0:04:51]} 4... Nf6 {[%clk 0:04:56]} 5. O-O {[%clk 0:04:48.7]} 5...
d6 {[%clk 0:04:54.2]} 6. Re1 {[%clk 0:04:46.8]} 6... Bd7 {[%clk 0:04:53.5]} 7.
c3 {[%clk 0:04:45.6]} 7... Be7 {[%clk 0:04:52.9]} 8. h3 {[%clk 0:04:44.1]} 8...
O-O {[%clk 0:04:52.1]} 9. d4 {[%clk 0:04:42.8]} 9... exd4 {[%clk 0:04:51.8]} 10.
cxd4 {[%clk 0:04:41.6]} 10... b5 {[%clk 0:04:51.4]} 11. Bb3 {[%clk 0:04:39.7]}
11... Ne8 {[%clk 0:04:45.6]} 12. Nc3 {[%clk 0:04:37.4]} 12... Kh8 {[%clk
0:04:42.4]} 13. Nd5 {[%clk 0:04:31.4]} 13... f5 {[%clk 0:04:40.1]} 14. Nxe7
{[%clk 0:04:29.8]} 14... Nxe7 {[%clk 0:04:33.1]} 15. e5 {[%clk 0:04:24.2]} 15...
dxe5 {[%clk 0:04:28.8]} 16. Nxe5 {[%clk 0:04:20.1]} 16... Nd6 {[%clk 0:04:21.2]}
17. Bg5 {[%clk 0:03:49.1]} 17... Qe8 {[%clk 0:04:05.5]} 18. Nxd7 {[%clk
0:03:43.1]} 18... Qxd7 {[%clk 0:04:03.6]} 19. Rxe7 {[%clk 0:03:35.4]} 1-0

[Event "Live Chess"]
[Site "Chess.com"]
[Date "2024.06.01"]
[Round "-"]
[White "A3ndrey9"]
[Black "powerchs"]
[Result "1-0"]
[WhiteElo "1294"]
[BlackElo "1243"]
[TimeControl "300"]
[EndTime "11:37:46 PDT"]
[Termination "A3ndrey9 won by resignation"]

1. Nf3 {[%clk 0:04:57.8]} 1... c5 {[%clk 0:04:57.6]} 2. d4 {[%clk 0:04:57.3]}
2... cxd4 {[%clk 0:04:54.5]} 3. Nxd4 {[%clk 0:04:55.6]} 3... Nf6 {[%clk
0:04:53]} 4. c4 {[%clk 0:04:55]} 4... g6 {[%clk 0:04:52]} 5. Nc3 {[%clk
0:04:54]} 5... Bg7 {[%clk 0:04:51]} 6. Bf4 {[%clk 0:04:53.5]} 6... O-O {[%clk
0:04:49.5]} 7. e4 {[%clk 0:04:51.6]} 7... d6 {[%clk 0:04:48.2]} 8. e5 {[%clk
0:04:48.3]} 8... dxe5 {[%clk 0:04:41.5]} 9. Bxe5 {[%clk 0:04:46.4]} 9... Ng4
{[%clk 0:04:39.1]} 10. Bxg7 {[%clk 0:04:43.4]} 10... Kxg7 {[%clk 0:04:37.9]} 11.
g3 {[%clk 0:04:38.1]} 11... e5 {[%clk 0:04:31.6]} 12. Nf3 {[%clk 0:04:36.4]}
12... Qxd1+ {[%clk 0:04:21.9]} 13. Rxd1 {[%clk 0:04:36.3]} 13... Nc6 {[%clk
0:04:18.4]} 14. Bg2 {[%clk 0:04:33.7]} 14... Bf5 {[%clk 0:04:13]} 15. O-O {[%clk
0:04:30.2]} 15... e4 {[%clk 0:04:11.8]} 16. Nd4 {[%clk 0:04:23.3]} 16... Rad8
{[%clk 0:04:02.8]} 17. Nxf5+ {[%clk 0:04:18.9]} 17... gxf5 {[%clk 0:03:58.5]}
18. h3 {[%clk 0:03:55.6]} 18... Nf6 {[%clk 0:03:56.5]} 19. f4 {[%clk 0:03:48.8]}
19... Nb4 {[%clk 0:03:53.2]} 20. a3 {[%clk 0:03:30.1]} 20... Rxd1 {[%clk
0:03:51.1]} 21. Rxd1 {[%clk 0:03:28.1]} 21... Nd3 {[%clk 0:03:50]} 22. Nb5
{[%clk 0:03:18.3]} 22... a6 {[%clk 0:03:47.2]} 23. Nd6 {[%clk 0:03:06.8]} 23...
Nxb2 {[%clk 0:03:34.9]} 24. Rb1 {[%clk 0:03:05.5]} 24... Rd8 {[%clk 0:03:09.9]}
25. Nxf5+ {[%clk 0:02:55.9]} 25... Kg6 {[%clk 0:03:07.5]} 26. Ne7+ {[%clk
0:02:47.2]} 26... Kg7 {[%clk 0:03:02.5]} 27. Rxb2 {[%clk 0:02:44.8]} 27... Rd1+
{[%clk 0:02:58]} 28. Kh2 {[%clk 0:02:42.9]} 28... e3 {[%clk 0:02:55.6]} 29. Bf3
{[%clk 0:02:36.2]} 29... Rd2+ {[%clk 0:02:54.4]} 30. Rxd2 {[%clk 0:02:33.8]}
30... exd2 {[%clk 0:02:53.5]} 31. Kg2 {[%clk 0:02:29.2]} 31... Ne4 {[%clk
0:02:50]} 32. Nf5+ {[%clk 0:02:20.6]} 32... Kf8 {[%clk 0:02:47.8]} 33. Ne3
{[%clk 0:02:16.8]} 33... Nc3 {[%clk 0:02:45.9]} 34. Nd1 {[%clk 0:02:14.3]} 1-0